bitfinex-derivatives/quotes_ETHF0:USTF0_20251118
["timestamp","ask_amount","ask_price","bid_price","bid_amount"]
[1763437956661,3.5598,3021.6,3021.1,1.73963723]
[1763437956863,3.2078,3021.6,3021.1,1.73963723]
[1763437957455,3.2078,3021.6,3021.5,1.73692723]
[1763437957656,4.0829,3021.6,3021.1,1.73963723]
[1763437957858,3.2078,3021.6,3021.5,2.64382723]
[1763437959269,3.2078,3022.6,3022.2,0.51]
[1763437959657,3.2078,3022.6,3022.1,1.73692723]
[1763437960664,0.8751,3022.1,3022.0,3.2078]
[1763437961067,3.2078,3022.6,3022.0,3.2078]
[1763437961769,3.2078,3022.6,3022.0,4.94472723]
[1763437962067,3.2078,3022.6,3022.5,0.9069]
[1763437962968,0.8751,3022.5,3022.4,1.73692723]
[1763437963356,3.2078,3022.6,3022.4,1.73692723]
[1763437963963,0.8751,3022.5,3022.0,4.94472723]
[1763437964265,0.8751,3022.1,3022.0,3.2078]
[1763437964570,3.2078,3022.6,3022.0,4.94472723]
[1763437965064,3.2078,3022.6,3022.0,1.73692723]
[1763437966263,3.2078,3022.6,3022.4,1.73692723]
[1763437966469,3.2078,3022.6,3022.5,0.9069]
[1763437966963,0.0025702,3022.8,3022.5,0.9069]
[1763437967166,0.0025702,3022.8,3022.4,1.73692723]
[1763437967469,0.8751,3022.0,3021.6,2.24692723]
[1763437967871,0.8751,3022.0,3021.6,1.73692723]
[1763437970164,3.2078,3022.1,3021.6,1.73692723]
[1763437971775,3.2078,3022.1,3021.6,2.24692723]
[1763437971963,3.2078,3022.1,3021.5,3.2078]
[1763437972464,3.2078,3022.1,3022.0,0.9069]
[1763437972669,3.2078,3022.5,3022.0,0.9069]
[1763437972873,3.2078,3022.5,3021.7,1.73692723]
[1763437974968,3.2078,3022.5,3021.5,3.2078]
[1763437974969,0.74677432,3022.4,3021.5,3.2078]
[1763437975164,0.74677432,3022.4,3021.7,1.73692723]
[1763437975473,3.2078,3022.5,3021.7,1.73692723]
[1763437977068,0.75419389,3022.4,3021.7,1.73692723]
[1763437977273,3.7405,3022.5,3021.7,1.73692723]
[1763437978277,0.0025702,3022.8,3022.7,0.9225]
[1763437980474,0.9255,3022.7,3022.4,3.2078]
[1763437982075,0.0025702,3022.8,3022.7,0.9225]
[1763437982280,3.2078,3023.9,3023.4,0.9225]
[1763437982575,3.2078,3023.9,3023.1,1.73692723]
[1763437983181,3.21131319,3023.9,3023.8,0.9225]
[1763437983874,0.00351319,3023.9,3023.8,0.9225]
[1763437984076,0.00351319,3023.9,3023.5,1.73692723]
[1763437984375,0.00351319,3023.9,3023.8,0.9225]
[1763437984769,0.9255,3023.3,3023.2,0.00496589]
[1763437985180,3.21131319,3023.9,3023.8,0.9225]
[1763437987471,0.00351319,3023.9,3023.8,4.1303]
[1763437988373,0.00351319,3023.9,3023.8,0.9225]
[1763437988581,0.00496589,3024.2,3024.1,0.9225]
[1763437988775,3.2078,3025.0,3024.1,2.65942723]
[1763437989079,3.2078,3025.4,3024.7,1.73692723]
[1763437989280,3.2078,3025.4,3024.7,4.94472723]
[1763437989578,3.2109007,3025.4,3024.7,1.73692723]
[1763437989778,3.2109007,3025.4,3024.6,3.7395]
[1763437989976,3.21586659,3025.4,3024.7,0.00496589]
[1763437990168,0.00806659,3025.4,3025.3,0.9225]
[1763437990373,0.00806659,3025.4,3025.3,0.92625761]
[1763437991185,3.2078,3025.8,3025.7,0.9225]
[1763437991381,3.2078,3025.8,3025.7,2.65942723]
[1763437992279,3.21199416,3025.8,3025.7,2.65942723]
[1763437992480,3.74469416,3025.8,3025.3,0.00375761]
[1763437992674,4.1333,3025.4,3024.7,3.21276589]
[1763437993273,3.2078,3024.8,3024.1,3.2078]
[1763437993674,0.5327,3024.7,3024.1,3.21087176]
[1763437994382,3.2078,3024.8,3024.1,3.21582921]
[1763437995279,3.2078,3024.8,3024.3,1.73692723]
[1763437995477,3.2078,3024.8,3024.1,3.21582921]
[1763437997183,0.5327,3024.7,3024.1,4.95275644]
[1763437997384,3.2078,3024.8,3024.1,4.95275644]
[1763437997580,3.2078,3024.8,3024.5,1.73692723]
[1763437997789,3.2078,3024.8,3024.7,0.5317]
[1763437998688,0.53689416,3025.8,3024.7,0.5317]
[1763437998689,3.2078,3025.2,3024.7,0.5317]
[1763437998879,3.2078,3025.2,3024.9,1.73692723]
[1763437999284,3.2078,3025.6,3024.9,4.94472723]
[1763437999489,3.2078,3025.6,3025.3,1.73692723]
[1763437999681,3.2078,3025.6,3024.9,4.94472723]
[1763438000788,3.2078,3025.6,3024.9,3.2078]
[1763438001288,0.00419416,3025.8,3024.9,3.2078]
[1763438001790,0.51719416,3025.8,3024.9,3.2078]
[1763438002681,3.2078,3025.4,3024.9,3.2078]
[1763438003486,3.2078,3025.4,3024.7,0.5317]
[1763438003885,3.2078,3025.0,3024.5,4.94472723]
[1763438005000,3.2078,3025.4,3024.9,0.8568]
[1763438005287,3.21199416,3025.8,3025.7,0.8568]
[1763438005484,0.00419416,3025.8,3025.7,2.59372723]
[1763438006197,0.00419416,3025.8,3025.7,0.8568]
[1763438007191,3.2078,3026.7,3025.8,0.4648]
[1763438007387,3.2078,3026.7,3026.3,4.94472723]
[1763438008093,3.21138934,3026.7,3026.3,4.94805338]
[1763438008895,3.21138934,3026.7,3026.3,3.21112615]
[1763438010298,0.00358934,3026.7,3026.6,1.96199697]
[1763438010498,0.484,3026.4,3026.3,3.21112615]
[1763438010698,0.00358934,3026.7,3026.3,3.21112615]
[1763438011184,0.484,3026.4,3026.3,3.21112615]
[1763438011589,1.2805,3026.4,3026.3,3.21112615]
[1763438011897,1.2805,3026.4,3026.3,0.00332615]
[1763438013392,0.484,3026.4,3026.3,0.00332615]
[1763438013698,3.21138934,3026.7,3026.3,0.00332615]
[1763438013997,1.2805,3026.4,3026.3,0.00332615]
[1763438015495,0.484,3026.4,3026.3,0.00332615]
[1763438016701,0.00358934,3026.7,3026.3,5.17312312]
[1763438016900,0.484,3027.0,3026.3,5.17312312]
[1763438016901,0.24356128,3027.0,3026.3,5.17312312]
[1763438017193,0.7965,3026.8,3026.4,3.2078]
[1763438017500,0.24356128,3027.0,3026.4,3.2078]
[1763438017999,0.25214327,3027.0,3026.4,3.2078]
[1763438018200,1.2805,3026.4,3026.3,0.00332615]
[1763438020296,0.484,3026.4,3026.3,0.00332615]
[1763438020497,1.2805,3026.4,3026.3,0.00332615]
[1763438025502,0.484,3026.4,3026.3,0.00332615]
[1763438026093,3.2078,3026.7,3026.3,0.00332615]
[1763438026299,0.25214327,3027.0,3026.5,3.2078]
[1763438026805,0.25214327,3027.0,3026.6,1.96199697]
[1763438029098,0.484,3027.6,3026.9,3.2078]
[1763438029396,1.2805,3027.0,3026.9,3.2078]
[1763438029601,0.484,3027.0,3026.9,3.2078]
[1763438029996,0.48712012,3027.0,3026.9,3.2078]
[1763438030198,1.28362012,3027.0,3026.9,3.2078]
[1763438030601,0.48712012,3027.0,3026.9,3.473557]
[1763438030806,0.00312012,3027.0,3026.9,3.473557]
[1763438031007,0.48712012,3027.0,3026.9,3.473557]
[1763438031208,0.00312012,3027.0,3026.9,3.473557]
[1763438031508,0.48712012,3027.0,3026.9,3.473557]
[1763438032005,1.28362012,3027.0,3026.9,3.2078]
[1763438032202,1.28362012,3027.0,3026.5,3.2078]
[1763438032393,0.7965,3026.6,3026.5,3.2078]
[1763438032599,0.7965,3026.4,3026.3,0.00332615]
[1763438034008,0.484,3026.5,3026.3,0.00332615]
[1763438034401,0.7965,3026.4,3026.3,0.00332615]
[1763438034805,0.484,3026.5,3026.3,0.00332615]
[1763438035609,0.7965,3026.4,3026.3,0.00332615]
[1763438036213,0.484,3026.5,3026.3,0.00332615]
[1763438036521,0.48712012,3027.0,3026.3,1.96532312]
[1763438037605,0.48712012,3027.0,3026.4,3.2078]
[1763438038706,1.3074,3026.5,3026.4,3.2078]
[1763438039315,1.3074,3026.5,3026.3,0.00332615]
[1763438039609,0.8223,3026.4,3026.3,0.00332615]
[1763438039809,0.8223,3026.3,3026.2,0.00495745]
[1763438040015,0.8223,3025.7,3025.6,3.2078]
[1763438040209,0.42515972,3025.7,3025.6,3.2078]
[1763438040407,3.63295972,3025.7,3025.0,3.2078]
[1763438040810,0.8223,3025.1,3025.0,0.00396782]
[1763438041014,0.8223,3025.1,3025.0,0.00892527]
[1763438041213,0.4851,3025.5,3025.0,0.00892527]
[1763438041614,0.8223,3025.1,3024.2,3.2078]
[1763438041825,0.8223,3025.1,3023.8,3.66220593]
[1763438041826,0.8223,3024.3,3023.4,3.2078]
[1763438042014,0.4846,3024.0,3023.4,3.2078]
[1763438042316,3.2078,3023.6,3022.5,3.2078]
[1763438042516,3.2078,3023.2,3022.5,3.2078]
[1763438042713,0.00908817,3023.2,3022.9,3.2078]
[1763438043118,0.00908817,3023.2,3023.1,0.7832]
[1763438043711,0.00908817,3023.2,3022.5,3.48531663]
[1763438044016,0.00908817,3023.2,3022.6,1.96199697]
[1763438044609,0.00908817,3023.2,3023.1,0.7832]
[1763438045120,0.00908817,3023.2,3022.6,1.96199697]
[1763438045712,0.00908817,3023.2,3022.5,3.48531663]
[1763438045914,0.8223,3022.6,3022.5,3.21585153]
[1763438046113,0.4851,3022.8,3022.5,3.21585153]
[1763438046315,3.2078,3022.9,3022.5,3.21585153]
[1763438046514,0.8223,3022.6,3022.5,0.00805153]
[1763438047223,0.8223,3022.6,3022.0,0.27167308]
[1763438047224,0.8223,3022.1,3022.0,0.27167308]
[1763438047417,0.4851,3022.8,3022.1,0.7832]
[1763438047418,3.2078,3022.2,3022.1,0.7832]
[1763438047720,3.2078,3022.9,3022.8,0.7832]
[1763438048024,3.2078,3022.9,3022.2,0.4504]
[1763438048233,3.2078,3022.9,3022.2,0.45900683]
[1763438049326,0.00908817,3023.2,3022.8,1.2336]
[1763438049524,0.00908817,3023.2,3022.8,0.7832]
[1763438049823,0.00908817,3023.2,3022.6,1.96199697]
[1763438050125,0.00908817,3023.2,3021.0,3.2078]
[1763438050126,0.4851,3022.2,3021.0,3.2078]
[1763438050326,3.6929,3021.6,3020.7,0.27209309]
[1763438050525,3.2078,3021.6,3021.0,2.41239697]
[1763438051235,3.21275745,3021.6,3021.0,1.969471]
[1763438051722,3.21275745,3021.6,3021.0,0.00747403]
[1763438052624,3.4553,3021.2,3021.0,0.00747403]
[1763438053625,0.8223,3021.1,3021.0,0.00747403]
[1763438053924,3.21275745,3021.6,3021.0,0.00747403]
[1763438054117,3.21275745,3021.6,3021.1,1.96199697]
[1763438054317,0.00495745,3021.6,3021.3,3.2078]
[1763438054921,0.00495745,3021.6,3021.0,0.45787403]
[1763438055825,3.21275745,3021.6,3021.0,0.00747403]
[1763438056728,3.2078,3021.1,3020.4,3.2078]
[1763438056931,3.2078,3020.7,3019.9,1.96199697]
[1763438057231,3.2078,3020.3,3019.9,1.96199697]
[1763438057533,3.2078,3020.3,3019.5,3.2078]
[1763438057824,3.2078,3019.9,3019.5,3.21027227]
[1763438058030,3.2078,3019.9,3019.5,0.00247227]
[1763438058340,0.4851,3019.8,3019.5,0.00247227]
[1763438058631,3.2078,3019.9,3019.5,0.00247227]
[1763438059630,0.00496607,3020.0,3019.8,2.42899697]
[1763438059828,0.00496607,3020.0,3019.9,3.2078]
[1763438065442,3.2078,3020.7,3019.9,3.2078]
[1763438065642,3.2078,3020.7,3020.3,1.96199697]
[1763438066036,3.2078,3020.7,3020.3,5.16979697]
[1763438066543,3.21168517,3020.7,3020.3,5.16979697]
[1763438066843,0.00388517,3020.7,3020.3,5.16979697]
[1763438067636,0.00388517,3020.7,3020.3,3.2078]
[1763438068434,0.00388517,3020.7,3020.3,5.16979697]
[1763438070233,0.00388517,3020.7,3020.5,0.4401]
[1763438070635,0.00388517,3020.7,3020.3,5.16979697]
[1763438070834,0.00388517,3020.7,3020.6,1.73767194]
[1763438071741,0.00388517,3020.7,3020.3,3.2078]
[1763438072038,0.00388517,3020.7,3020.6,1.73767194]
[1763438073332,0.00496607,3020.8,3020.6,1.73767194]
[1763438073537,0.76795582,3021.6,3020.7,3.2078]
[1763438073733,0.4493,3021.2,3020.3,3.2078]
[1763438073942,3.2078,3020.9,3020.2,0.00496607]
[1763438074130,3.2078,3020.5,3020.2,0.00496607]
[1763438074337,3.21123472,3020.5,3020.2,0.00496607]
[1763438074635,1.21804311,3020.4,3020.2,0.00496607]
[1763438074830,0.4493,3020.4,3020.2,0.00496607]
[1763438075340,0.76927778,3020.3,3020.2,0.00496607]
[1763438077647,0.00343472,3020.5,3020.2,0.00496607]
[1763438078042,0.45273472,3020.5,3020.2,0.00496607]
[1763438078244,0.77000398,3020.4,3020.2,0.00496607]
[1763438078839,3.2078,3020.4,3020.2,0.00496607]
[1763438079045,0.77000398,3020.3,3019.5,4.94794421]
[1763438079641,0.77000398,3020.3,3019.9,1.73767194]
[1763438079833,0.77000398,3020.3,3019.9,4.94547194]
[1763438080345,0.00343472,3020.5,3019.9,4.94547194]
[1763438080547,0.00343472,3020.5,3020.4,1.73767194]
[1763438081444,0.00343472,3020.5,3020.3,3.2078]
[1763438082443,0.45273472,3020.5,3019.9,3.2078]
[1763438082644,0.77214295,3020.4,3019.9,3.2078]
[1763438083237,0.77214295,3020.3,3019.9,3.2078]
[1763438084042,0.77214295,3020.2,3020.1,2.49577194]
[1763438084247,0.00343472,3020.5,3020.1,2.49577194]
[1763438085351,0.7283,3020.2,3019.9,3.2078]
[1763438085542,0.7283,3020.0,3019.9,3.2078]
[1763438085744,0.7283,3019.9,3019.8,0.00496607]
[1763438086651,1.18455293,3020.1,3019.8,0.00496607]
[1763438086839,0.7283,3019.9,3019.8,0.00496607]
[1763438087041,1.18455293,3020.1,3019.8,0.00496607]
[1763438087654,0.7283,3019.9,3019.8,0.00496607]
[1763438088155,3.9361,3019.9,3019.8,0.00496607]
[1763438088652,1.18455293,3020.0,3019.8,0.00496607]
[1763438088849,1.18455293,3020.1,3019.8,0.00496607]
[1763438089252,1.18455293,3020.3,3019.8,0.00496607]
[1763438089552,0.7283,3019.9,3019.8,0.00496607]
[1763438089754,1.18455293,3020.3,3019.8,0.00496607]
[1763438090049,2.37845166,3022.3,3021.5,3.2078]
[1763438090251,0.4493,3023.4,3022.1,1.73767194]
[1763438090445,3.2078,3023.3,3022.8,1.73767194]
[1763438090751,0.4493,3022.8,3022.4,2.29907565]
[1763438090956,0.45308353,3022.8,3022.7,3.2078]
[1763438091149,5.54735096,3022.8,3022.7,4.06799171]
[1763438091450,8.75515096,3022.8,3022.7,4.06799171]
[1763438091953,8.75515096,3022.8,3022.7,5.78205372]
[1763438092150,8.75515096,3022.8,3022.7,4.04491064]
[1763438092354,0.45308353,3022.8,3021.6,1.73767194]
[1763438092547,3.2078,3022.2,3021.6,1.73767194]
[1763438093349,3.2078,3022.2,3021.6,1.74578536]
[1763438093648,3.2078,3022.2,3021.6,2.01424579]
[1763438094050,0.4493,3021.9,3021.6,2.01424579]
[1763438094354,0.4493,3021.9,3021.6,1.74578536]
[1763438097962,0.4493,3021.9,3021.8,0.85623278]
[1763438098361,0.4493,3021.9,3021.7,0.85623278]
[1763438098556,3.2078,3021.8,3021.6,0.8643462]
[1763438098965,3.2078,3021.8,3021.6,2.60201814]
[1763438099261,0.4493,3021.9,3021.6,2.60201814]
[1763438099654,0.4493,3021.9,3021.6,1.74578536]
[1763438100666,0.7848,3021.9,3021.6,1.74578536]
[1763438100965,0.7848,3021.2,3020.6,3.2078]
[1763438101163,3.2078,3021.0,3020.6,3.2078]
[1763438101873,6.0,3020.9,3019.7,1.73767194]
[1763438102174,0.7848,3019.8,3019.7,1.73767194]
[1763438102569,0.7848,3019.8,3019.5,3.2078]
[1763438102960,3.2078,3019.7,3019.5,0.00239557]
[1763438103266,0.78718508,3019.8,3019.5,0.00239557]
[1763438104572,0.7848,3019.1,3018.9,0.26678484]
[1763438104768,3.2078,3019.0,3018.3,3.2078]
[1763438105069,3.2078,3019.0,3018.8,0.81670216]
[1763438105377,3.2078,3019.0,3018.9,1.73767194]
[1763438105566,0.00496607,3019.3,3018.9,2.55795102]
[1763438105768,0.00496607,3019.3,3019.0,0.81628429]
[1763438105978,0.00496607,3019.3,3019.1,0.81628429]
[1763438106275,0.00496607,3019.3,3019.2,0.8157725]
[1763438106976,0.00496607,3019.3,3018.9,0.00399479]
[1763438107374,0.00496607,3019.3,3019.0,0.81564084]
[1763438107573,0.00496607,3019.3,3018.9,0.00399479]
[1763438107775,0.7848,3019.1,3019.0,0.81563176]
[1763438108269,0.7848,3019.1,3018.9,0.00399479]
[1763438109073,0.7848,3019.1,3019.0,0.81565933]
[1763438109274,0.00496607,3019.3,3019.0,0.81565933]
[1763438109275,0.00496607,3019.3,3019.2,0.8695]
[1763438109474,0.7848,3019.2,3018.9,0.00399479]
[1763438109676,0.7848,3019.2,3019.0,0.81598935]
[1763438109978,0.7848,3019.2,3019.1,0.81598935]
[1763438110267,0.00496607,3019.3,3019.2,0.8695]
[1763438110474,0.00496607,3019.3,3019.2,4.0773]
[1763438110772,0.00496607,3019.3,3019.2,4.89274314]
[1763438111174,0.7848,3019.2,3018.9,0.00399479]
[1763438111473,1.4475,3019.0,3018.9,0.00399479]
[1763438112968,1.4475,3018.8,3018.7,0.03312739]
[1763438113170,4.6553,3018.8,3018.7,0.03312739]
[1763438113371,3.9926,3019.2,3018.7,0.03312739]
[1763438113866,3.9926,3019.2,3018.7,0.03610443]
[1763438114071,1.4475,3018.8,3018.7,0.03610443]
[1763438114271,4.6553,3018.8,3018.7,0.03610443]
[1763438115073,4.6553,3018.8,3018.7,4.43e-06]
[1763438115277,1.4475,3018.4,3017.9,3.2078]
[1763438115474,3.2078,3018.8,3018.0,2.55115067]
[1763438115674,3.2078,3018.8,3018.4,1.73767194]
[1763438116179,3.2078,3018.8,3018.4,0.00400975]
[1763438116572,3.9926,3019.2,3018.7,0.9096]
[1763438116771,3.9926,3019.2,3019.0,1.73767194]
[1763438116971,0.00496607,3019.3,3019.0,1.73767194]
[1763438117175,0.00496607,3019.3,3019.2,0.9096]
[1763438117476,0.00496607,3019.3,3019.0,1.73767194]
[1763438117868,0.7848,3019.2,3019.0,1.73767194]
[1763438118067,0.00496607,3019.3,3019.0,1.73767194]
[1763438118277,0.7848,3019.2,3019.0,1.73767194]
[1763438118478,0.00496607,3019.3,3019.0,1.73767194]
[1763438118879,0.00496607,3019.3,3019.2,0.9096]
[1763438119676,0.00496607,3019.3,3019.2,1.72134585]
[1763438121075,0.00238508,3019.8,3019.2,0.81174585]
[1763438121277,0.00238508,3019.8,3019.7,2.36837194]
[1763438122181,0.00238508,3019.8,3019.7,3.1811761]
[1763438123477,2.02168508,3019.8,3019.7,0.81280416]
[1763438123678,0.79498508,3019.8,3019.7,0.81280416]
[1763438124982,0.00238508,3019.8,3019.7,0.81280416]
[1763438125478,0.00496607,3020.1,3020.0,0.6307]
[1763438125678,0.00496607,3020.1,3020.0,3.1811761]
[1763438126177,0.00496607,3020.1,3020.0,2.5504761]
[1763438126680,1.23443105,3020.1,3020.0,0.81280416]
[1763438126883,1.23443105,3020.1,3019.4,1.14633734]
[1763438127080,3.9756,3019.8,3019.4,0.00496607]
[1763438127283,1.1983,3019.5,3019.4,0.00496607]
[1763438128288,0.7678,3019.8,3019.4,1.74263801]
[1763438128584,0.00773105,3020.1,3019.7,6.17317194]
[1763438128785,0.00773105,3020.1,3019.7,4.94547194]
[1763438128982,0.00773105,3020.1,3019.7,3.2078]
[1763438129180,0.00773105,3020.1,3019.7,4.34917127]
[1763438129782,0.00773105,3020.1,3019.7,1.14137127]
[1763438129980,1.9661,3019.8,3019.7,1.14137127]
[1763438130286,1.9661,3019.8,3019.5,1.14137127]
[1763438130688,0.00773105,3020.1,3019.6,1.14137127]
[1763438130882,0.00773105,3020.1,3019.5,1.14137127]
[1763438131283,0.00773105,3020.1,3019.6,1.14137127]
[1763438131881,0.00773105,3020.1,3019.6,4.34917127]
[1763438132392,0.00773105,3020.1,3019.6,1.14137127]
[1763438134193,0.00773105,3020.1,3019.7,1.14137127]
[1763438134393,0.00773105,3020.1,3019.6,4.34917127]
[1763438134693,0.00773105,3020.1,3019.7,1.14137127]
[1763438138696,0.7678,3019.8,3019.6,1.14137127]
[1763438138996,1.1983,3019.8,3019.7,0.80493191]
[1763438139189,4.4061,3019.8,3019.7,0.80493191]
[1763438140396,0.7678,3020.0,3019.7,0.80493191]
[1763438140603,0.7678,3020.0,3019.8,0.80493191]
[1763438140793,0.7678,3020.0,3019.9,0.80493191]
[1763438140992,1.9661,3020.0,3019.9,0.80493191]
[1763438142194,1.9661,3020.0,3019.9,3.191e-05]
[1763438143294,1.9661,3019.5,3019.4,1.14633734]
[1763438143802,3.2078,3019.8,3019.4,1.14633734]
[1763438144203,1.1983,3019.6,3019.5,1.14137127]
[1763438145287,1.9661,3019.5,3019.4,0.00496607]
[1763438147703,3.2078,3019.8,3019.4,0.00496607]
[1763438148600,1.1983,3019.5,3019.4,0.00496607]
[1763438148799,1.9661,3019.5,3019.4,0.00496607]
[1763438151906,1.9661,3019.0,3018.9,1.15440518]
[1763438152104,1.1983,3018.8,3018.7,1.15440518]
[1763438152304,1.1983,3018.8,3018.4,0.00400975]
[1763438152609,1.9661,3018.5,3018.4,0.00400975]
[1763438154103,3.2078,3018.6,3018.4,0.00400975]
[1763438154500,3.2078,3018.6,3018.5,1.2277]
[1763438154706,3.2078,3018.6,3018.5,1.9714]
[1763438154908,3.2078,3018.6,3018.5,1.2277]
[1763438155708,1.9661,3018.5,3018.4,0.00400975]
[1763438155914,3.2078,3018.6,3018.4,0.00400975]
[1763438156114,3.2078,3018.6,3018.5,1.2277]
[1763438156511,4.4061,3018.6,3018.4,0.00400975]
[1763438157309,1.1983,3018.6,3018.4,0.00400975]
[1763438157510,3.9756,3019.0,3018.4,0.00400975]
[1763438158215,3.2078,3019.0,3018.9,1.1394]
[1763438159309,3.2078,3019.4,3018.9,1.1394]
[1763438160430,4.3737,3019.4,3019.0,0.3507]
[1763438160630,4.3737,3019.4,3018.8,3.2078]
[1763438160830,4.3737,3019.4,3019.0,0.86378276]
[1763438161326,1.1659,3019.1,3018.9,0.86378276]
[1763438161731,1.8364,3019.0,3018.9,0.86378276]
[1763438161933,1.1659,3018.9,3018.8,3.2078]
[1763438162429,1.1659,3018.8,3018.7,0.86378276]
[1763438162729,1.1659,3018.6,3018.5,0.86378276]
[1763438162924,1.8364,3018.5,3018.4,0.86779251]
[1763438163124,1.8364,3018.5,3018.4,0.00400975]
[1763438163324,5.0442,3018.5,3018.4,0.00400975]
[1763438164937,3.2078,3018.9,3018.4,1.14340975]
[1763438165131,3.2078,3018.9,3018.6,0.86378276]
[1763438165335,3.2078,3018.9,3018.8,1.1394]
[1763438165539,3.2078,3019.3,3018.8,1.1394]
[1763438165837,3.2078,3019.3,3018.8,2.00318276]
[1763438166028,3.2078,3019.3,3018.9,0.86378276]
[1763438166228,3.2078,3019.3,3019.0,0.86378276]
[1763438166636,3.2078,3019.3,3019.2,1.1394]
[1763438166937,3.2078,3019.3,3019.2,2.00318276]
[1763438167638,3.2078,3019.3,3019.2,0.86378276]
[1763438167932,4.3737,3019.3,3019.2,0.86378276]
[1763438168136,3.2078,3019.3,3019.2,2.00318276]
[1763438168637,3.2078,3019.7,3019.2,2.00318276]
[1763438168842,3.2078,3019.7,3019.3,0.86378276]
[1763438169541,1.1659,3019.4,3019.3,0.86378276]
[1763438169934,1.1659,3019.4,3019.1,0.86378276]
[1763438170438,1.1659,3019.1,3019.0,0.86378276]
[1763438170744,0.6705,3019.5,3019.0,2.00318276]
[1763438170943,0.6705,3019.5,3019.0,0.86378276]
[1763438170944,1.1659,3019.1,3019.0,0.86378276]
[1763438171337,3.2078,3019.3,3018.9,0.86378276]
[1763438171941,0.6705,3019.5,3018.9,0.86378276]
[1763438172330,0.6705,3019.5,3019.0,0.86378276]
[1763438172737,0.6705,3019.5,3019.1,0.86378276]
[1763438173138,1.1659,3019.1,3019.0,0.86378276]
[1763438173532,1.8364,3019.0,3018.9,0.86378276]
[1763438174843,1.1659,3018.9,3018.8,0.86378276]
[1763438175034,1.1659,3018.8,3018.7,0.86378276]
[1763438175643,1.1659,3018.8,3018.4,0.00400975]
[1763438175644,1.1659,3018.8,3018.4,1.71965242]
[1763438176350,0.6705,3019.0,3018.4,1.71965242]
[1763438176543,1.1659,3018.9,3018.8,0.8649968]
[1763438177144,3.2078,3019.3,3018.8,0.8649968]
[1763438177344,0.6705,3019.5,3018.8,0.8649968]
[1763438177545,1.1659,3018.9,3018.8,0.8649968]
[1763438179654,3.2078,3019.3,3018.8,0.8649968]
[1763438179655,3.2078,3019.3,3018.8,2.00481259]
[1763438179856,3.2078,3019.3,3018.9,0.86541259]
[1763438182152,1.7395,3019.0,3018.9,0.86541259]
[1763438182353,1.1162,3019.0,3018.9,0.86541259]
[1763438182549,0.6705,3019.5,3018.9,2.00161259]
[1763438182751,1.1162,3019.3,3019.2,0.86541259]
[1763438183849,1.1162,3019.3,3019.1,1.15450966]
[1763438184055,0.6705,3019.5,3019.2,1.1362]
[1763438184252,1.1162,3019.4,3019.3,1.145e-05]
[1763438184555,1.1162,3019.0,3018.9,1.15450966]
[1763438185244,3.2078,3019.4,3018.9,2.29070966]
[1763438185952,3.2078,3019.4,3019.0,1.15450966]
[1763438186258,3.2078,3019.4,3018.9,1.15450966]
[1763438187547,1.1162,3019.0,3018.9,1.15578625]
[1763438187753,1.1162,3019.0,3018.8,4.92344267]
[1763438188057,3.2078,3019.4,3018.9,1.0682]
[1763438188258,1.0302,3019.1,3019.0,1.15623467]
[1763438188944,1.0302,3019.1,3019.0,2.22443467]
[1763438190152,3.2078,3019.4,3019.3,1.0682]
[1763438190663,3.2078,3019.4,3019.3,2.22561256]
[1763438190857,3.2078,3019.4,3019.3,1.0682]
[1763438191551,0.00773105,3020.1,3019.3,1.0682]
[1763438191759,3.2078,3019.8,3019.4,1.15759869]
[1763438192260,0.00773105,3020.1,3019.5,1.15759869]
[1763438193861,1.0302,3019.6,3019.5,1.15759869]
[1763438194047,0.00773105,3020.1,3019.4,1.15759869]
[1763438194048,1.0302,3019.5,3019.4,1.15759869]
[1763438194251,0.00773105,3020.1,3019.5,0.6632]
[1763438194457,0.00773105,3020.1,3019.5,1.82094063]
[1763438194849,0.5909,3020.0,3019.5,1.15774063]
[1763438195055,1.0302,3019.6,3019.5,1.15774063]
[1763438195453,0.5909,3020.0,3019.5,2.22594063]
[1763438195649,0.5909,3020.0,3019.5,2.88914063]
[1763438195850,0.3428,3019.3,3018.7,2.29907565]
[1763438196054,3.2078,3019.2,3019.0,0.6632]
[1763438196452,3.2078,3019.6,3019.0,0.6632]
[1763438196656,3.2078,3019.6,3019.5,0.6632]
[1763438196863,3.5506,3019.6,3019.0,0.6632]
[1763438197555,0.3428,3019.1,3018.5,2.40238136]
[1763438198668,3.2078,3019.6,3019.0,1.7314]
[1763438198964,3.2078,3019.6,3019.5,0.6632]
[1763438199166,3.5506,3019.6,3019.5,0.6632]
[1763438199968,3.5506,3019.6,3019.0,0.6632]
[1763438202077,3.2078,3019.6,3019.5,1.7314]
[1763438203675,3.5506,3019.6,3019.5,1.7314]
[1763438203877,3.2078,3019.6,3019.5,1.7314]
[1763438205873,3.5506,3019.6,3019.0,0.6632]
[1763438206677,3.5506,3019.6,3019.5,0.6632]
[1763438208375,3.2078,3019.6,3019.5,1.7314]
[1763438209271,3.2078,3020.0,3019.9,1.0682]
[1763438211566,3.5506,3020.0,3019.5,0.6632]
[1763438212176,0.3428,3019.4,3019.0,0.6632]
[1763438212375,3.2078,3020.0,3019.3,1.0682]
[1763438212574,0.3428,3019.4,3019.0,0.6632]
[1763438213578,3.2078,3020.0,3019.0,0.6632]
[1763438214474,0.3428,3019.1,3019.0,0.6632]
[1763438214670,0.3428,3019.0,3018.9,3.2078]
[1763438215475,0.3428,3019.0,3018.5,3.871]
[1763438216381,3.2078,3019.2,3018.5,3.871]
[1763438219090,3.2078,3019.2,3018.5,4.9318]
[1763438220788,3.2078,3019.2,3019.0,0.5814]
[1763438220988,0.1629,3019.1,3019.0,0.5814]
[1763438221294,3.2078,3019.2,3018.5,3.871]
[1763438221490,3.2078,3019.2,3019.0,0.5814]
[1763438221692,3.2078,3019.2,3019.1,1.0608]
[1763438223387,3.2078,3019.6,3019.5,1.6422]
[1763438223781,0.1629,3019.6,3019.5,0.5814]
[1763438223981,3.37843105,3020.1,3020.0,0.5814]
[1763438224381,3.37843105,3020.1,3019.5,0.5814]
[1763438224792,3.21553105,3020.1,3019.5,1.6422]
[1763438224989,3.08725676,3020.1,3020.0,1.6422]
[1763438225193,3.2078,3020.5,3020.4,1.0608]
[1763438225493,3.2078,3020.5,3020.0,0.5814]
[1763438225688,3.2078,3020.9,3020.1,3.2078]